[Event "FIDE Grand Swiss 2023"]
[Site "Villa Marina, Douglas, Isle of Man"]
[Date "2023.10.30"]
[Round "6.37"]
[White "Vachier-Lagrave, Maxime"]
[Black "Idani, Pouya"]
[Result "1-0"]
[WhiteElo "2727"]
[BlackElo "2633"]
[EventDate "2023.10.25"]
[ECO "B12"]
[PlyCount "81"]
[BlackFideId "12510130"]
[TimeControl "40/100 + 20/50 + 15 + 30s/move"]
[WhiteFideId "623539"]

1.e4 {[%clk 01:40:58] [%emt 00:00:01]} 1...c6 {[%clk 01:40:56] [%emt 00:00:04]} 
2.d4 {[%clk 01:39:06] [%emt 00:02:23]} 2...d5 {[%clk 01:41:20] [%emt 00:00:04]} 
3.e5 {[%clk 01:39:34] [%emt 00:00:03]} 3...c5 {[%clk 01:41:45] [%emt 00:00:04]} 
4.Nf3 {[%clk 01:39:49] [%emt 00:00:16]} 4...cxd4 {[%clk 01:42:10] [%emt
00:00:06]} 5.Nxd4 {[%clk 01:40:10] [%emt 00:00:08]} 5...Nc6 {[%clk 01:42:35]
[%emt 00:00:05]} 6.Bb5 {[%clk 01:40:34] [%emt 00:00:07]} 6...Bd7 {[%clk
01:42:57] [%emt 00:00:08]} 7.Nxc6 {[%clk 01:40:36] [%emt 00:00:27]} 7...Bxc6 
{[%clk 01:43:23] [%emt 00:00:04]} 8.Bd3 {[%clk 01:34:00] [%emt 00:07:06]} 
8...d4 {[%clk 01:43:34] [%emt 00:00:19]} 9.Qe2 {[%clk 01:31:07] [%emt 00:03:23]} 
9...e6 {[%clk 01:43:05] [%emt 00:01:00]} 10.O-O {[%clk 01:29:27] [%emt
00:02:10]} 10...Qd5 {[%clk 01:35:16] [%emt 00:08:17]} 11.f3 {[%clk 01:27:06]
[%emt 00:02:52]} 11...Bc5 {[%clk 01:29:21] [%emt 00:06:25]} 12.Kh1 {[%clk
01:15:50] [%emt 00:11:46]} 12...Ne7 {[%clk 01:25:36] [%emt 00:04:15]} 13.c4 
{[%clk 01:14:21] [%emt 00:02:00]} 13...Qd7 {[%clk 01:22:57] [%emt 00:03:09]} 
14.Nd2 {[%clk 01:09:19] [%emt 00:05:32]} 14...Nf5 {[%clk 01:16:29] [%emt
00:06:57]} 15.Nb3 {[%clk 01:07:17] [%emt 00:02:33]} 15...b6 {[%clk 01:15:42]
[%emt 00:01:17]} 16.Nxc5 {[%clk 01:00:46] [%emt 00:07:01]} 16...bxc5 {[%clk
01:16:06] [%emt 00:00:05]} 17.Kg1 {[%clk 01:01:11] [%emt 00:00:06]} 17...a5 
{[%clk 01:13:52] [%emt 00:02:43]} 18.b3 {[%clk 01:00:10] [%emt 00:01:31]} 
18...Bb7 {[%clk 01:11:30] [%emt 00:02:53]} 19.Ba3 {[%clk 00:56:45] [%emt
00:03:55]} 19...Rc8 {[%clk 00:59:07] [%emt 00:12:52]} 20.Bxf5 {[%clk 00:54:40]
[%emt 00:02:36]} 20...exf5 {[%clk 00:59:31] [%emt 00:00:06]} 21.e6 {[%clk
00:53:34] [%emt 00:01:36]} 21...Qxe6 {[%clk 00:59:38] [%emt 00:00:22]} 22.Rfe1 
{[%clk 00:53:57] [%emt 00:00:07]} 22...Qxe2 {[%clk 00:54:32] [%emt 00:05:37]} 
23.Rxe2+ {[%clk 00:54:12] [%emt 00:00:15]} 23...Kd7 {[%clk 00:54:56] [%emt
00:00:05]} 24.Rae1 {[%clk 00:45:13] [%emt 00:09:29]} 24...Kc6 {[%clk 00:38:54]
[%emt 00:16:33]} 25.Re7 {[%clk 00:45:25] [%emt 00:00:17]} 25...a4 {[%clk
00:35:51] [%emt 00:03:33]} 26.R1e5 {[%clk 00:38:54] [%emt 00:07:01]} 26...Kb6 
{[%clk 00:35:36] [%emt 00:00:45]} 27.Kf2 {[%clk 00:38:42] [%emt 00:00:43]} 
27...d3 {[%clk 00:23:38] [%emt 00:12:27]} 28.Ke3 {[%clk 00:32:12] [%emt
00:07:00]} 28...axb3 {[%clk 00:19:46] [%emt 00:04:22]} 29.axb3 {[%clk 00:32:25]
[%emt 00:00:18]} 29...Rhd8 {[%clk 00:20:10] [%emt 00:00:06]} 30.Kd2 {[%clk
00:32:47] [%emt 00:00:08]} 30...Ra8 {[%clk 00:19:33] [%emt 00:01:07]} 31.Bxc5+ 
{[%clk 00:33:11] [%emt 00:00:06]} 31...Kc6 {[%clk 00:20:00] [%emt 00:00:03]} 
32.b4 {[%clk 00:32:45] [%emt 00:00:56]} 32...Ra2+ {[%clk 00:20:15] [%emt
00:00:15]} 33.Kc3 {[%clk 00:33:11] [%emt 00:00:04]} 33...Rc2+ {[%clk 00:19:14]
[%emt 00:01:31]} 34.Kb3 {[%clk 00:33:30] [%emt 00:00:11]} 34...Ba6 {[%clk
00:19:36] [%emt 00:00:08]} 35.b5+ {[%clk 00:33:55] [%emt 00:00:05]} 35...Bxb5 
{[%clk 00:20:00] [%emt 00:00:05]} 36.cxb5+ {[%clk 00:34:21] [%emt 00:00:04]} 
36...Kxb5 {[%clk 00:20:25] [%emt 00:00:06]} 37.Bb4+ {[%clk 00:33:46] [%emt
00:01:04]} 37...Kc6 {[%clk 00:19:36] [%emt 00:01:19]} 38.Rxf7 {[%clk 00:33:26]
[%emt 00:00:50]} 38...d2 {[%clk 00:05:01] [%emt 00:15:05]} 39.Re6+ {[%clk
00:33:41] [%emt 00:00:16]} 39...Kd5 {[%clk 00:05:26] [%emt 00:00:05]} 40.Rd6+ 
{[%clk 00:34:07] [%emt 00:00:04]} 40...Rxd6 {[%clk 00:05:32] [%emt 00:00:24]} 
41.Kxc2 {[%clk 00:34:32] [%emt 00:00:04]} 1-0

[Event "FIDE Grand Swiss 2023"]
[Site "Villa Marina, Douglas, Isle of Man"]
[Date "2023.10.30"]
[Round "6.38"]
[White "Van Foreest, Jorden"]
[Black "Gledura, Benjamin"]
[Result "0-1"]
[WhiteElo "2707"]
[BlackElo "2633"]
[EventDate "2023.10.25"]
[ECO "B90"]
[PlyCount "133"]
[BlackFideId "712779"]
[TimeControl "40/100 + 20/50 + 15 + 30s/move"]
[WhiteFideId "1039784"]

1.e4 {[%clk 01:40:23] [%emt 00:00:35]} 1...c5 {[%clk 01:40:33] [%emt 00:00:28]} 
2.Nf3 {[%clk 01:40:25] [%emt 00:00:28]} 2...d6 {[%clk 01:40:49] [%emt 00:00:14]} 
3.d4 {[%clk 01:40:14] [%emt 00:00:40]} 3...cxd4 {[%clk 01:41:13] [%emt
00:00:07]} 4.Nxd4 {[%clk 01:40:07] [%emt 00:00:36]} 4...Nf6 {[%clk 01:41:35]
[%emt 00:00:09]} 5.Nc3 {[%clk 01:40:06] [%emt 00:00:32]} 5...a6 {[%clk 01:41:45]
[%emt 00:00:19]} 6.Qd3 {[%clk 01:40:11] [%emt 00:00:24]} 6...e6 {[%clk 01:40:27]
[%emt 00:01:48]} 7.g4 {[%clk 01:40:07] [%emt 00:00:34]} 7...Nxg4 {[%clk
01:29:38] [%emt 00:11:19]} 8.Rg1 {[%clk 01:39:37] [%emt 00:01:00]} 8...h5 
{[%clk 01:20:47] [%emt 00:09:21]} 9.h3 {[%clk 01:35:51] [%emt 00:04:17]} 
9...Ne5 {[%clk 01:19:07] [%emt 00:02:10]} 10.Qg3 {[%clk 01:35:35] [%emt
00:00:46]} 10...h4 {[%clk 01:19:04] [%emt 00:00:33]} 11.Qg2 {[%clk 01:35:30]
[%emt 00:00:34]} 11...Nbc6 {[%clk 01:16:53] [%emt 00:02:42]} 12.Nb3 {[%clk
01:24:18] [%emt 00:11:41]} 12...g5 {[%clk 01:15:08] [%emt 00:02:15]} 13.Be3 
{[%clk 01:21:20] [%emt 00:03:28]} 13...Be7 {[%clk 00:51:58] [%emt 00:23:40]} 
14.O-O-O {[%clk 01:20:00] [%emt 00:01:50]} 14...Bd7 {[%clk 00:50:40] [%emt
00:01:49]} 15.f3 {[%clk 01:12:26] [%emt 00:08:04]} 15...b5 {[%clk 00:48:37]
[%emt 00:02:33]} 16.Kb1 {[%clk 01:11:43] [%emt 00:01:12]} 16...Qc7 {[%clk
00:41:06] [%emt 00:08:02]} 17.Qf2 {[%clk 01:10:24] [%emt 00:01:49]} 17...Rc8 
{[%clk 00:37:22] [%emt 00:04:14]} 18.Bxg5 {[%clk 01:03:03] [%emt 00:07:50]} 
18...Bxg5 {[%clk 00:36:41] [%emt 00:01:12]} 19.Rxg5 {[%clk 01:03:27] [%emt
00:00:06]} 19...b4 {[%clk 00:36:46] [%emt 00:00:25]} 20.Na4 {[%clk 00:58:11]
[%emt 00:05:45]} 20...Qa7 {[%clk 00:19:16] [%emt 00:18:01]} 21.Qxa7 {[%clk
00:53:17] [%emt 00:05:24]} 21...Nxa7 {[%clk 00:19:40] [%emt 00:00:06]} 22.Nb6 
{[%clk 00:53:14] [%emt 00:00:33]} 22...Rc6 {[%clk 00:17:49] [%emt 00:02:21]} 
23.Nxd7 {[%clk 00:53:23] [%emt 00:00:21]} 23...Nxd7 {[%clk 00:18:11] [%emt
00:00:08]} 24.Ra5 {[%clk 00:43:02] [%emt 00:10:50]} 24...Nb8 {[%clk 00:16:32]
[%emt 00:02:09]} 25.Ra4 {[%clk 00:42:18] [%emt 00:01:14]} 25...Rb6 {[%clk
00:16:56] [%emt 00:00:06]} 26.Na5 {[%clk 00:42:00] [%emt 00:00:48]} 26...Nc8 
{[%clk 00:17:17] [%emt 00:00:09]} 27.Nc4 {[%clk 00:40:10] [%emt 00:02:20]} 
27...Rb7 {[%clk 00:17:41] [%emt 00:00:07]} 28.Rxd6 {[%clk 00:37:08] [%emt
00:03:32]} 28...Nxd6 {[%clk 00:14:34] [%emt 00:03:36]} 29.Nxd6+ {[%clk 00:37:26]
[%emt 00:00:12]} 29...Ke7 {[%clk 00:15:00] [%emt 00:00:05]} 30.Nxb7 {[%clk
00:37:48] [%emt 00:00:08]} 30...Rg8 {[%clk 00:15:21] [%emt 00:00:08]} 31.Kc1 
{[%clk 00:36:14] [%emt 00:02:04]} 31...Rg1 {[%clk 00:15:42] [%emt 00:00:10]} 
32.Kd2 {[%clk 00:36:42] [%emt 00:00:02]} 32...Rxf1 {[%clk 00:16:04] [%emt
00:00:08]} 33.Ke3 {[%clk 00:33:48] [%emt 00:03:23]} 33...Nc6 {[%clk 00:14:44]
[%emt 00:01:51]} 34.Nc5 {[%clk 00:25:08] [%emt 00:09:10]} 34...a5 {[%clk
00:13:06] [%emt 00:02:09]} 35.Nb3 {[%clk 00:25:33] [%emt 00:00:04]} 35...Rh1 
{[%clk 00:10:49] [%emt 00:02:46]} 36.Nxa5 {[%clk 00:20:27] [%emt 00:05:37]} 
36...Ne5 {[%clk 00:11:10] [%emt 00:00:08]} 37.Rxb4 {[%clk 00:20:31] [%emt
00:00:27]} 37...Rxh3 {[%clk 00:11:31] [%emt 00:00:08]} 38.Nc4 {[%clk 00:19:42]
[%emt 00:01:20]} 38...Rxf3+ {[%clk 00:04:43] [%emt 00:07:18]} 39.Ke2 {[%clk
00:20:09] [%emt 00:00:03]} 39...h3 {[%clk 00:05:01] [%emt 00:00:12]} 40.Rb8 
{[%clk 00:14:24] [%emt 00:06:15]} 40...Rf4 {[%clk 00:05:06] [%emt 00:00:24]} 
41.Nxe5 {[%clk 00:14:39] [%emt 00:00:16]} 41...Rxe4+ {[%clk 00:05:31] [%emt
00:00:05]} 42.Kd3 {[%clk 00:12:27] [%emt 00:02:41]} 42...Rxe5 {[%clk 00:04:52]
[%emt 00:01:10]} 43.Rh8 {[%clk 00:12:48] [%emt 00:00:08]} 43...Rd5+ {[%clk
00:02:49] [%emt 00:02:33]} 44.Kc4 {[%clk 00:10:30] [%emt 00:02:49]} 44...Rd2 
{[%clk 00:47:09] [%emt 00:06:10]} 45.Kc3 {[%clk 01:00:31] [%emt 00:00:28]} 
45...Rd8 {[%clk 00:45:27] [%emt 00:02:12]} 46.Rxh3 {[%clk 00:59:49] [%emt
00:01:12]} 46...f5 {[%clk 00:45:28] [%emt 00:00:29]} 47.b4 {[%clk 00:58:07]
[%emt 00:02:12]} 47...f4 {[%clk 00:44:25] [%emt 00:01:34]} 48.a4 {[%clk
00:55:09] [%emt 00:03:28]} 48...e5 {[%clk 00:43:02] [%emt 00:01:53]} 49.a5 
{[%clk 00:46:18] [%emt 00:09:21]} 49...Ke6 {[%clk 00:40:16] [%emt 00:03:15]} 
50.a6 {[%clk 00:45:56] [%emt 00:00:53]} 50...e4 {[%clk 00:38:07] [%emt
00:02:39]} 51.Rh6+ {[%clk 00:36:58] [%emt 00:09:27]} 51...Kf5 {[%clk 00:36:45]
[%emt 00:01:52]} 52.Rh5+ {[%clk 00:37:08] [%emt 00:00:20]} 52...Kf6 {[%clk
00:32:28] [%emt 00:04:48]} 53.a7 {[%clk 00:35:45] [%emt 00:01:52]} 53...e3 
{[%clk 00:27:22] [%emt 00:05:36]} 54.Rh6+ {[%clk 00:30:44] [%emt 00:05:31]} 
54...Kf5 {[%clk 00:26:55] [%emt 00:00:58]} 55.Rh5+ {[%clk 00:29:40] [%emt
00:01:33]} 55...Ke4 {[%clk 00:24:48] [%emt 00:02:37]} 56.Rh7 {[%clk 00:25:29]
[%emt 00:04:42]} 56...f3 {[%clk 00:16:31] [%emt 00:08:47]} 57.Re7+ {[%clk
00:21:38] [%emt 00:04:21]} 57...Kf4 {[%clk 00:16:55] [%emt 00:00:06]} 58.Rf7+ 
{[%clk 00:16:16] [%emt 00:05:52]} 58...Kg3 {[%clk 00:16:05] [%emt 00:01:19]} 
59.Rg7+ {[%clk 00:16:27] [%emt 00:00:19]} 59...Kh3 {[%clk 00:15:59] [%emt
00:00:36]} 60.Rd7 {[%clk 00:12:12] [%emt 00:04:45]} 60...Rc8+ {[%clk 00:13:46]
[%emt 00:02:43]} 61.Kd3 {[%clk 00:12:20] [%emt 00:00:22]} 61...e2 {[%clk
00:14:05] [%emt 00:00:11]} 62.Rh7+ {[%clk 00:08:12] [%emt 00:04:38]} 62...Kg3 
{[%clk 00:11:53] [%emt 00:02:42]} 63.Rh1 {[%clk 00:08:25] [%emt 00:00:17]} 
63...Ra8 {[%clk 00:12:04] [%emt 00:00:20]} 64.Ke3 {[%clk 00:08:01] [%emt
00:00:54]} 64...Re8+ {[%clk 00:11:34] [%emt 00:01:00]} 65.Kd3 {[%clk 00:08:19]
[%emt 00:00:11]} 65...Kg2 {[%clk 00:07:49] [%emt 00:04:16]} 66.Rb1 {[%clk
00:08:39] [%emt 00:00:10]} 66...Ra8 {[%clk 00:07:58] [%emt 00:00:21]} 67.Kd4 
{[%clk 00:06:03]} 0-1

[Event "FIDE Grand Swiss 2023"]
[Site "Villa Marina, Douglas, Isle of Man"]
[Date "2023.10.30"]
[Round "6.39"]
[White "Karthikeyan, Murali"]
[Black "Martirosyan, Haik M."]
[Result "1/2-1/2"]
[WhiteElo "2611"]
[BlackElo "2696"]
[EventDate "2023.10.25"]
[PlyCount "88"]
[BlackFideId "13306553"]
[TimeControl "40/100 + 20/50 + 15 + 30s/move"]
[WhiteFideId "5074452"]

1.e4 {[%clk 01:40:56] [%emt 00:00:03]} 1...e5 {[%clk 01:40:53] [%emt 00:00:07]} 
2.Nf3 {[%clk 01:41:19] [%emt 00:00:07]} 2...Nc6 {[%clk 01:41:18] [%emt
00:00:05]} 3.Bb5 {[%clk 01:41:42] [%emt 00:00:07]} 3...Nf6 {[%clk 01:41:42]
[%emt 00:00:07]} 4.O-O {[%clk 01:42:06] [%emt 00:00:06]} 4...Nxe4 {[%clk
01:42:06] [%emt 00:00:05]} 5.d4 {[%clk 01:42:30] [%emt 00:00:06]} 5...Nd6 
{[%clk 01:42:28] [%emt 00:00:08]} 6.Bxc6 {[%clk 01:42:54] [%emt 00:00:07]} 
6...dxc6 {[%clk 01:42:51] [%emt 00:00:06]} 7.dxe5 {[%clk 01:43:18] [%emt
00:00:06]} 7...Nf5 {[%clk 01:43:16] [%emt 00:00:06]} 8.Qxd8+ {[%clk 01:43:39]
[%emt 00:00:09]} 8...Kxd8 {[%clk 01:43:42] [%emt 00:00:03]} 9.h3 {[%clk
01:44:00] [%emt 00:00:10]} 9...h5 {[%clk 01:43:19] [%emt 00:00:53]} 10.Nc3 
{[%clk 01:44:15] [%emt 00:00:15]} 10...Ke8 {[%clk 01:42:27] [%emt 00:01:21]} 
11.Bf4 {[%clk 01:44:30] [%emt 00:00:15]} 11...Be7 {[%clk 01:41:33] [%emt
00:01:25]} 12.Rad1 {[%clk 01:44:46] [%emt 00:00:13]} 12...Nh4 {[%clk 01:40:41]
[%emt 00:01:22]} 13.Nd4 {[%clk 01:45:05] [%emt 00:00:12]} 13...Nf5 {[%clk
01:40:19] [%emt 00:00:52]} 14.Nf3 {[%clk 01:45:12] [%emt 00:00:23]} 14...Nh4 
{[%clk 01:40:36] [%emt 00:00:13]} 15.Nd4 {[%clk 01:45:35] [%emt 00:00:07]} 
15...Nf5 {[%clk 01:41:00] [%emt 00:00:06]} 16.Nce2 {[%clk 01:45:28] [%emt
00:00:36]} 16...g5 {[%clk 01:39:56] [%emt 00:01:34]} 17.Bh2 {[%clk 01:45:41]
[%emt 00:00:18]} 17...Nxd4 {[%clk 01:39:21] [%emt 00:01:05]} 18.Nxd4 {[%clk
01:46:03] [%emt 00:00:07]} 18...Rh6 {[%clk 01:39:22] [%emt 00:00:29]} 19.Rfe1 
{[%clk 01:46:09] [%emt 00:00:24]} 19...Bd8 {[%clk 01:33:35] [%emt 00:06:17]} 
20.e6 {[%clk 01:44:20] [%emt 00:02:19]} 20...Bxe6 {[%clk 01:31:01] [%emt
00:03:05]} 21.Nxe6 {[%clk 01:44:42] [%emt 00:00:08]} 21...Rxe6 {[%clk 01:29:45]
[%emt 00:01:45]} 22.Rxe6+ {[%clk 01:44:09]} 22...fxe6 {[%clk 01:30:10] [%emt
00:01:08]} 23.Be5 {[%clk 01:43:33] [%emt 00:01:06]} 23...Rc8 {[%clk 01:22:48]
[%emt 00:07:52]} 24.g4 {[%clk 01:32:26] [%emt 00:11:37]} 24...hxg4 {[%clk
01:20:09] [%emt 00:03:10]} 25.hxg4 {[%clk 01:32:50] [%emt 00:00:05]} 25...Be7 
{[%clk 01:20:14] [%emt 00:00:25]} 26.Rd3 {[%clk 01:32:41] [%emt 00:00:40]} 
26...Rd8 {[%clk 01:09:26] [%emt 00:11:18]} 27.Bxc7 {[%clk 01:29:20] [%emt
00:03:50]} 27...Rd5 {[%clk 01:07:30] [%emt 00:02:26]} 28.Kf1 {[%clk 01:23:37]
[%emt 00:06:14]} 28...c5 {[%clk 00:46:40] [%emt 00:21:19]} 29.Ke2 {[%clk
00:55:49] [%emt 00:28:18]} 29...c4 {[%clk 00:44:52] [%emt 00:02:18]} 30.Rxd5 
{[%clk 00:50:33] [%emt 00:05:47]} 30...exd5 {[%clk 00:45:14] [%emt 00:00:07]} 
31.f4 {[%clk 00:46:09] [%emt 00:04:54]} 31...gxf4 {[%clk 00:44:56] [%emt
00:00:49]} 32.Kf3 {[%clk 00:43:41] [%emt 00:02:58]} 32...Bf6 {[%clk 00:41:54]
[%emt 00:03:32]} 33.b3 {[%clk 00:44:02] [%emt 00:00:08]} 33...cxb3 {[%clk
00:42:02] [%emt 00:00:22]} 34.cxb3 {[%clk 00:44:18] [%emt 00:00:14]} 34...Kf7 
{[%clk 00:42:11] [%emt 00:00:21]} 35.Kxf4 {[%clk 00:40:45] [%emt 00:04:03]} 
35...Kg6 {[%clk 00:38:19] [%emt 00:04:21]} 36.Be5 {[%clk 00:40:05] [%emt
00:01:11]} 36...Bg5+ {[%clk 00:37:58] [%emt 00:00:50]} 37.Kf3 {[%clk 00:40:29]
[%emt 00:00:06]} 37...a6 {[%clk 00:37:55] [%emt 00:00:34]} 38.Ke2 {[%clk
00:39:20] [%emt 00:01:39]} 38...Be7 {[%clk 00:35:39] [%emt 00:02:46]} 39.Bf4 
{[%clk 00:37:42] [%emt 00:02:07]} 39...Bf8 {[%clk 00:32:14] [%emt 00:03:57]} 
40.Kd3 {[%clk 00:38:05] [%emt 00:00:07]} 40...Bg7 {[%clk 00:31:42] [%emt
00:01:02]} 41.Bd2 {[%clk 00:38:06] [%emt 00:00:29]} 41...Bf6 {[%clk 00:30:48]
[%emt 00:01:23]} 42.Bc3 {[%clk 00:38:25] [%emt 00:00:11]} 42...Bd8 {[%clk
00:25:13] [%emt 00:06:06]} 43.Kd4 {[%clk 00:37:11] [%emt 00:01:43]} 43...Bf6+ 
{[%clk 00:25:02] [%emt 00:00:42]} 44.Kd3 {[%clk 00:37:35] [%emt 00:00:05]} 
44...Bd8 {[%clk 00:25:27] [%emt 00:00:05]} 1/2-1/2

[Event "FIDE Grand Swiss 2023"]
[Site "Villa Marina, Douglas, Isle of Man"]
[Date "2023.10.30"]
[Round "6.40"]
[White "Sargissian, Gabriel"]
[Black "Theodorou, Nikolas"]
[Result "1/2-1/2"]
[WhiteElo "2686"]
[BlackElo "2619"]
[EventDate "2023.10.25"]
[ECO "D41"]
[PlyCount "64"]
[BlackFideId "4262875"]
[TimeControl "40/100 + 20/50 + 15 + 30s/move"]
[WhiteFideId "13300881"]

1.d4 {[%clk 01:40:56] [%emt 00:00:02]} 1...Nf6 {[%clk 01:40:55] [%emt 00:00:06]} 
2.c4 {[%clk 01:41:21] [%emt 00:00:05]} 2...e6 {[%clk 01:41:21] [%emt 00:00:04]} 
3.Nf3 {[%clk 01:41:30] [%emt 00:00:21]} 3...d5 {[%clk 01:41:37] [%emt 00:00:14]} 
4.Nc3 {[%clk 01:41:47] [%emt 00:00:13]} 4...c5 {[%clk 01:41:58] [%emt 00:00:10]} 
5.cxd5 {[%clk 01:41:35] [%emt 00:00:42]} 5...cxd4 {[%clk 01:42:21] [%emt
00:00:07]} 6.Qxd4 {[%clk 01:40:52] [%emt 00:01:13]} 6...exd5 {[%clk 01:42:43]
[%emt 00:00:07]} 7.Bg5 {[%clk 01:36:25] [%emt 00:04:57]} 7...Be7 {[%clk
01:43:02] [%emt 00:00:11]} 8.e3 {[%clk 01:35:13] [%emt 00:01:42]} 8...O-O 
{[%clk 01:43:21] [%emt 00:00:11]} 9.Rd1 {[%clk 01:34:34] [%emt 00:01:09]} 
9...Be6 {[%clk 01:42:58] [%emt 00:00:53]} 10.Bd3 {[%clk 01:19:40] [%emt
00:15:24]} 10...h6 {[%clk 01:39:08] [%emt 00:04:20]} 11.Bh4 {[%clk 01:19:07]
[%emt 00:01:03]} 11...Qa5 {[%clk 01:39:22] [%emt 00:00:16]} 12.O-O {[%clk
01:17:50] [%emt 00:01:47]} 12...Nc6 {[%clk 01:38:20] [%emt 00:01:32]} 13.Qa4 
{[%clk 01:17:33] [%emt 00:00:47]} 13...Qxa4 {[%clk 01:35:44] [%emt 00:03:07]} 
14.Nxa4 {[%clk 01:17:57] [%emt 00:00:06]} 14...g5 {[%clk 01:32:01] [%emt
00:04:12]} 15.Bg3 {[%clk 01:18:21] [%emt 00:00:06]} 15...Ne4 {[%clk 01:32:27]
[%emt 00:00:05]} 16.Nc3 {[%clk 01:11:10] [%emt 00:07:41]} 16...Nxg3 {[%clk
01:27:05] [%emt 00:05:51]} 17.hxg3 {[%clk 01:11:32] [%emt 00:00:07]} 17...Bf6 
{[%clk 01:27:13] [%emt 00:00:23]} 18.Bc2 {[%clk 01:10:50] [%emt 00:01:13]} 
18...Rac8 {[%clk 01:00:11] [%emt 00:27:32]} 19.Bb3 {[%clk 01:09:15] [%emt
00:02:04]} 19...Bxc3 {[%clk 00:58:54] [%emt 00:01:48]} 20.bxc3 {[%clk 01:09:32]
[%emt 00:00:12]} 20...Ne7 {[%clk 00:59:21] [%emt 00:00:03]} 21.Nd4 {[%clk
01:05:28] [%emt 00:04:34]} 21...Rxc3 {[%clk 00:59:06] [%emt 00:00:45]} 22.e4 
{[%clk 01:03:34] [%emt 00:02:24]} 22...Rd8 {[%clk 00:50:33] [%emt 00:09:03]} 
23.Rfe1 {[%clk 00:57:52] [%emt 00:06:12]} 23...dxe4 {[%clk 00:42:34] [%emt
00:08:30]} 24.Nxe6 {[%clk 00:46:40] [%emt 00:11:41]} 24...Rxd1 {[%clk 00:42:57]
[%emt 00:00:07]} 25.Rxd1 {[%clk 00:46:40] [%emt 00:00:30]} 25...fxe6 {[%clk
00:43:24] [%emt 00:00:03]} 26.Bxe6+ {[%clk 00:39:40] [%emt 00:07:29]} 26...Kg7 
{[%clk 00:43:37] [%emt 00:00:17]} 27.Rd7 {[%clk 00:40:03] [%emt 00:00:07]} 
27...Kf6 {[%clk 00:42:34] [%emt 00:01:33]} 28.Bb3 {[%clk 00:40:23] [%emt
00:00:10]} 28...Nc6 {[%clk 00:17:58] [%emt 00:25:06]} 29.Rd6+ {[%clk 00:37:12]
[%emt 00:03:41]} 29...Kg7 {[%clk 00:15:25] [%emt 00:03:03]} 30.Rd7+ {[%clk
00:36:16] [%emt 00:01:26]} 30...Kf6 {[%clk 00:15:36] [%emt 00:00:19]} 31.Rd6+ 
{[%clk 00:36:12] [%emt 00:00:34]} 31...Kg7 {[%clk 00:03:41] [%emt 00:12:27]} 
32.Rd7+ {[%clk 00:35:43] [%emt 00:00:57]} 32...Kf6 {[%clk 00:00:49] [%emt
00:03:23]} 1/2-1/2

[Event "FIDE Grand Swiss 2023"]
[Site "Villa Marina, Douglas, Isle of Man"]
[Date "2023.10.30"]
[Round "6.41"]
[White "Bachmann, Axel"]
[Black "Amin, Bassem"]
[Result "1/2-1/2"]
[WhiteElo "2604"]
[BlackElo "2680"]
[EventDate "2023.10.25"]
[ECO "E61"]
[PlyCount "61"]
[BlackFideId "10601457"]
[TimeControl "40/100 + 20/50 + 15 + 30s/move"]
[WhiteFideId "3700488"]

1.c4 {[%clk 01:40:55] [%emt 00:00:05]} 1...Nf6 {[%clk 01:39:55] [%emt 00:01:05]} 
2.Nc3 {[%clk 01:41:10] [%emt 00:00:14]} 2...g6 {[%clk 01:40:11] [%emt 00:00:16]} 
3.d4 {[%clk 01:41:21] [%emt 00:00:19]} 3...Bg7 {[%clk 01:40:18] [%emt 00:00:22]} 
4.Nf3 {[%clk 01:41:43] [%emt 00:00:08]} 4...d6 {[%clk 01:40:27] [%emt 00:00:22]} 
5.Bg5 {[%clk 01:41:41] [%emt 00:00:32]} 5...h6 {[%clk 01:38:13] [%emt 00:02:43]} 
6.Bh4 {[%clk 01:41:30] [%emt 00:00:41]} 6...g5 {[%clk 01:38:26] [%emt 00:00:18]} 
7.Bg3 {[%clk 01:41:54] [%emt 00:00:05]} 7...Nh5 {[%clk 01:38:52] [%emt
00:00:05]} 8.e3 {[%clk 01:42:05] [%emt 00:00:19]} 8...c5 {[%clk 01:38:37] [%emt
00:00:43]} 9.d5 {[%clk 01:40:42] [%emt 00:01:54]} 9...Nxg3 {[%clk 01:36:55]
[%emt 00:02:13]} 10.hxg3 {[%clk 01:41:04] [%emt 00:00:07]} 10...Bxc3+ {[%clk
01:36:50] [%emt 00:00:36]} 11.bxc3 {[%clk 01:41:27] [%emt 00:00:06]} 11...Kd7 
{[%clk 01:37:16] [%emt 00:00:04]} 12.Bd3 {[%clk 01:35:56] [%emt 00:06:01]} 
12...Kc7 {[%clk 01:37:06] [%emt 00:00:40]} 13.Qc2 {[%clk 01:33:21] [%emt
00:03:05]} 13...Qf8 {[%clk 01:35:24] [%emt 00:02:12]} 14.Nd2 {[%clk 01:32:50]
[%emt 00:01:01]} 14...Qg7 {[%clk 01:33:48] [%emt 00:02:06]} 15.Rb1 {[%clk
01:31:54] [%emt 00:01:26]} 15...Nd7 {[%clk 01:33:41] [%emt 00:00:37]} 16.Bf5 
{[%clk 01:31:39] [%emt 00:00:45]} 16...Re8 {[%clk 01:08:55] [%emt 00:25:17]} 
17.Qa4 {[%clk 01:23:06] [%emt 00:09:03]} 17...Rd8 {[%clk 01:01:41] [%emt
00:07:44]} 18.Qa5+ {[%clk 01:17:53] [%emt 00:05:42]} 18...b6 {[%clk 00:49:26]
[%emt 00:12:45]} 19.Qa4 {[%clk 01:17:10] [%emt 00:01:14]} 19...Qxc3 {[%clk
00:44:43] [%emt 00:05:12]} 20.Rxh6 {[%clk 01:15:31]} 20...Ne5 {[%clk 00:44:39]
[%emt 00:02:43]} 21.Bxc8 {[%clk 01:11:33] [%emt 00:04:27]} 21...Rdxc8 {[%clk
00:44:30] [%emt 00:00:41]} 22.Rb3 {[%clk 00:55:52] [%emt 00:16:10]} 22...Qc1+ 
{[%clk 00:22:19] [%emt 00:22:41]} 23.Ke2 {[%clk 00:55:56] [%emt 00:00:27]} 
23...Kb7 {[%emt 00:11:34]} 24.f4 {[%clk 00:45:55]} 24...gxf4 {[%clk 00:21:17]
[%emt 00:00:59]} 25.gxf4 {[%clk 00:46:12] [%emt 00:00:13]} 25...Rg8 {[%clk
00:16:45] [%emt 00:05:01]} 26.Rh2 {[%clk 00:41:25] [%emt 00:05:16]} 26...Qg1 
{[%clk 00:17:01] [%emt 00:00:14]} 27.fxe5 {[%clk 00:41:50] [%emt 00:00:05]} 
27...Qxh2 {[%clk 00:17:23] [%emt 00:00:08]} 28.Qc6+ {[%clk 00:42:16] [%emt
00:00:04]} 28...Kb8 {[%clk 00:17:48] [%emt 00:00:05]} 29.Rxb6+ {[%clk 00:42:41]
[%emt 00:00:05]} 29...axb6 {[%clk 00:18:16] [%emt 00:00:02]} 30.Qxb6+ {[%clk
00:43:02] [%emt 00:00:08]} 30...Kc8 {[%clk 00:18:45] [%emt 00:00:01]} 31.Qc6+ 
{[%clk 00:43:22] [%emt 00:00:11]} 1/2-1/2